[Event "Titled Tuesday Blitz July 11 Early 2023"]
[White "Kuchava, Ana"]
[Black "Leebit02"]
[WhiteFideId "13605348"]
[WhiteElo "2264"]
[BlackElo "2573"]
[Result "0-1"]
[Round "1"]
[TimeControl "180+2"]
[Date "2023.07.11"]
[WhiteClock "0:00:00"]
[BlackClock "0:00:10"]
[Board "167"]

1. d4 {[%clk 0:03:00]}  d5 {[%clk 0:02:57]} 2. Nf3 {[%clk 0:02:59]}  Nf6 {[%clk 0:02:57]} 3. c4 {[%clk 0:02:59]}  e6 {[%clk 0:02:56]} 4. Nc3 {[%clk 0:02:59]}  c6 {[%clk 0:02:55]} 5. e3 {[%clk 0:02:58]}  Nbd7 {[%clk 0:02:54]} 6. Bd3 {[%clk 0:02:58]}  dxc4 {[%clk 0:02:52]} 7. Bxc4 {[%clk 0:02:59]}  b5 {[%clk 0:02:53]} 8. Bd3 {[%clk 0:02:53]}  Bd6 {[%clk 0:02:49]} 9. O-O {[%clk 0:02:53]}  O-O {[%clk 0:02:49]} 10. e4 {[%clk 0:02:46]}  e5 {[%clk 0:02:44]} 11. d5 {[%clk 0:02:41]}  cxd5 {[%clk 0:01:52]} 12. Nxb5 {[%clk 0:02:30]}  Bb8 {[%clk 0:01:50]} 13. Qc2 {[%clk 0:01:57]}  Bb7 {[%clk 0:01:41]} 14. Nc3 {[%clk 0:01:42]}  Nc5 {[%clk 0:01:32]} 15. exd5 {[%clk 0:01:33]}  Qd6 {[%clk 0:00:24]} 16. Ne4 {[%clk 0:00:32]}  Nfxe4 {[%clk 0:00:21]} 17. Bxe4 {[%clk 0:00:33]}  g6 {[%clk 0:00:19]} 18. Bh6 {[%clk 0:00:21]}  Re8 {[%clk 0:00:19]} 19. Rac1 {[%clk 0:00:20]}  Nxe4 {[%clk 0:00:18]} 20. Qxe4 {[%clk 0:00:21]}  Bxd5 {[%clk 0:00:19]} 21. Qh4 {[%clk 0:00:16]}  Bxf3 {[%clk 0:00:19]} 22. gxf3 {[%clk 0:00:17]}  Bc7 {[%clk 0:00:14]} 23. Rfd1 {[%clk 0:00:14]}  Qb6 {[%clk 0:00:14]} 24. Bg5 {[%clk 0:00:13]}  Re6 {[%clk 0:00:14]} 25. Rd7 {[%clk 0:00:10]}  Bd6 {[%clk 0:00:14]} 26. Rxf7 {[%clk 0:00:08]}  Kxf7 {[%clk 0:00:12]} 27. Qxh7+ {[%clk 0:00:08]}  Ke8 {[%clk 0:00:12]} 28. Qg8+ {[%clk 0:00:08]}  Bf8 {[%clk 0:00:12]} 29. Rd1 {[%clk 0:00:03]}  Qc6 {[%clk 0:00:09]} 30. Rd8+ {[%clk 0:00:01]}  Rxd8 {[%clk 0:00:09]} 31. Bxd8 {[%clk 0:00:02]}  Kxd8 {[%clk 0:00:09]} 32. Qxf8+ {[%clk 0:00:02]}  Kc7 {[%clk 0:00:10]} 33. Qf7+ {[%clk 0:00:00]}  Kb6 {[%clk 0:00:10]} 0-1


[Site "https://www.chess.com"]

[Event "Titled Tuesday Blitz July 11 Early 2023"]
[White "Parpiev, Isaak"]
[Black "rionelG"]
[WhiteFideId "34281576"]
[WhiteElo "2572"]
[BlackElo "2257"]
[Result "1-0"]
[Round "1"]
[TimeControl "180+2"]
[Date "2023.07.11"]
[WhiteClock "0:00:16"]
[BlackClock "0:00:00"]
[Board "170"]

1. d4 {[%clk 0:02:58]}  Nf6 {[%clk 0:02:59]} 2. c4 {[%clk 0:02:59]}  g6 {[%clk 0:03:00]} 3. Nc3 {[%clk 0:02:59]}  Bg7 {[%clk 0:03:00]} 4. e4 {[%clk 0:03:00]}  O-O {[%clk 0:03:01]} 5. Be2 {[%clk 0:02:59]}  d6 {[%clk 0:03:00]} 6. h4 {[%clk 0:02:59]}  c5 {[%clk 0:02:53]} 7. d5 {[%clk 0:03:00]}  e6 {[%clk 0:02:53]} 8. h5 {[%clk 0:03:00]}  exd5 {[%clk 0:02:53]} 9. exd5 {[%clk 0:03:01]}  Re8 {[%clk 0:02:51]} 10. Kf1 {[%clk 0:03:01]}  Bf5 {[%clk 0:02:32]} 11. h6 {[%clk 0:02:43]}  Bh8 {[%clk 0:02:30]} 12. Bg5 {[%clk 0:02:42]}  Qb6 {[%clk 0:02:26]} 13. b3 {[%clk 0:02:41]}  Ne4 {[%clk 0:01:38]} 14. Nxe4 {[%clk 0:02:41]}  Bxe4 {[%clk 0:01:39]} 15. Rc1 {[%clk 0:02:14]}  Na6 {[%clk 0:01:38]} 16. Qd2 {[%clk 0:02:08]}  Qb4 {[%clk 0:01:20]} 17. Qf4 {[%clk 0:02:03]}  Bf5 {[%clk 0:01:19]} 18. g4 {[%clk 0:01:59]}  Be5 {[%clk 0:01:19]} 19. Qf3 {[%clk 0:01:28]}  Bd7 {[%clk 0:01:18]} 20. Qd3 {[%clk 0:01:16]}  b5 {[%clk 0:01:10]} 21. cxb5 {[%clk 0:01:09]}  Nc7 {[%clk 0:01:10]} 22. a4 {[%clk 0:01:08]}  a6 {[%clk 0:01:10]} 23. bxa6 {[%clk 0:01:06]}  Rxa6 {[%clk 0:01:02]} 24. Nf3 {[%clk 0:01:01]}  Bh8 {[%clk 0:00:59]} 25. Rc4 {[%clk 0:01:00]}  Qb7 {[%clk 0:00:57]} 26. Nd2 {[%clk 0:00:51]}  Qxd5 {[%clk 0:00:53]} 27. Qxd5 {[%clk 0:00:47]}  Nxd5 {[%clk 0:00:54]} 28. Bf3 {[%clk 0:00:45]}  Nf6 {[%clk 0:00:43]} 29. Kg2 {[%clk 0:00:34]}  Rb6 {[%clk 0:00:43]} 30. Rd1 {[%clk 0:00:32]}  Be6 {[%clk 0:00:42]} 31. Rc2 {[%clk 0:00:25]}  Nxg4 {[%clk 0:00:39]} 32. Nc4 {[%clk 0:00:21]}  Rxb3 {[%clk 0:00:37]} 33. Nxd6 {[%clk 0:00:20]}  Reb8 {[%clk 0:00:34]} 34. Nb5 {[%clk 0:00:18]}  Ne5 {[%clk 0:00:32]} 35. Be4 {[%clk 0:00:17]}  Rb4 {[%clk 0:00:00]} 36. f3 {[%clk 0:00:16]} 1-0


[Site "https://www.chess.com"]

[Event "Titled Tuesday Blitz July 11 Early 2023"]
[White "Chernomordik, Pavel"]
[Black "Magallanes, Rey Jomar"]
[WhiteFideId "2804530"]
[BlackFideId "5205948"]
[WhiteElo "2571"]
[BlackElo "2252"]
[Result "1-0"]
[Round "1"]
[TimeControl "180+2"]
[Date "2023.07.11"]
[WhiteClock "0:00:51"]
[BlackClock "0:01:07"]
[Board "172"]

1. e4 {[%clk 0:02:55]}  c5 {[%clk 0:02:59]} 2. Nc3 {[%clk 0:02:55]}  d6 {[%clk 0:03:00]} 3. f4 {[%clk 0:02:55]}  g6 {[%clk 0:03:00]} 4. Nf3 {[%clk 0:02:54]}  Nc6 {[%clk 0:03:00]} 5. Bb5 {[%clk 0:02:55]}  Bg7 {[%clk 0:02:59]} 6. O-O {[%clk 0:02:52]}  Nf6 {[%clk 0:02:58]} 7. d3 {[%clk 0:02:48]}  O-O {[%clk 0:02:57]} 8. Bxc6 {[%clk 0:02:47]}  bxc6 {[%clk 0:02:57]} 9. Qe1 {[%clk 0:02:48]}  e5 {[%clk 0:02:50]} 10. fxe5 {[%clk 0:02:45]}  dxe5 {[%clk 0:02:51]} 11. Be3 {[%clk 0:02:41]}  Nd7 {[%clk 0:02:50]} 12. b3 {[%clk 0:02:33]}  f5 {[%clk 0:02:48]} 13. Na4 {[%clk 0:02:28]}  Qe7 {[%clk 0:02:47]} 14. Qc3 {[%clk 0:02:24]}  f4 {[%clk 0:02:37]} 15. Bxc5 {[%clk 0:02:17]}  Nxc5 {[%clk 0:02:36]} 16. Qxc5 {[%clk 0:02:16]}  Qe6 {[%clk 0:02:33]} 17. Qc4 {[%clk 0:02:13]}  h6 {[%clk 0:02:25]} 18. Qxe6+ {[%clk 0:02:12]}  Bxe6 {[%clk 0:02:26]} 19. Nc5 {[%clk 0:02:12]}  Bc8 {[%clk 0:02:26]} 20. Nd2 {[%clk 0:02:02]}  g5 {[%clk 0:02:25]} 21. Nc4 {[%clk 0:02:02]}  h5 {[%clk 0:02:22]} 22. Rad1 {[%clk 0:01:58]}  g4 {[%clk 0:02:18]} 23. c3 {[%clk 0:01:57]}  f3 {[%clk 0:02:16]} 24. d4 {[%clk 0:01:54]}  exd4 {[%clk 0:02:05]} 25. cxd4 {[%clk 0:01:54]}  Bh6 {[%clk 0:02:02]} 26. d5 {[%clk 0:01:44]}  cxd5 {[%clk 0:01:44]} 27. Rxd5 {[%clk 0:01:42]}  a5 {[%clk 0:01:39]} 28. Rxh5 {[%clk 0:01:39]}  Kg7 {[%clk 0:01:37]} 29. gxf3 {[%clk 0:01:31]}  gxf3 {[%clk 0:01:36]} 30. Kf2 {[%clk 0:01:31]}  Bg4 {[%clk 0:01:33]} 31. Rg1 {[%clk 0:01:29]}  Rf4 {[%clk 0:01:27]} 32. h3 {[%clk 0:01:27]}  Kg6 {[%clk 0:01:17]} 33. hxg4 {[%clk 0:01:26]}  Bg5 {[%clk 0:01:17]} 34. Ne5+ {[%clk 0:01:24]}  Kf6 {[%clk 0:01:17]} 35. Ned3 {[%clk 0:01:23]}  Rc8 {[%clk 0:01:11]} 36. Nxf4 {[%clk 0:01:08]}  Rxc5 {[%clk 0:01:10]} 37. Nd5+ {[%clk 0:01:07]}  Kg6 {[%clk 0:01:09]} 38. Kxf3 {[%clk 0:01:06]}  Rc2 {[%clk 0:01:07]} 39. Nf4+ {[%clk 0:01:02]}  Kf6 {[%clk 0:01:06]} 40. e5+ {[%clk 0:01:01]}  Kxe5 {[%clk 0:01:06]} 41. Rxg5+ {[%clk 0:01:01]}  Kd4 {[%clk 0:01:07]} 42. Rd1+ {[%clk 0:00:58]}  Kc3 {[%clk 0:01:07]} 43. Rc5+ {[%clk 0:00:57]}  Kb2 {[%clk 0:01:07]} 44. Nd3+ {[%clk 0:00:55]}  Ka3 {[%clk 0:01:06]} 45. Rxc2 {[%clk 0:00:54]}  a4 {[%clk 0:01:06]} 46. bxa4 {[%clk 0:00:53]}  Kxa4 {[%clk 0:01:07]} 47. Rb1 {[%clk 0:00:53]}  Ka3 {[%clk 0:01:07]} 48. Rb3+ {[%clk 0:00:50]}  Ka4 {[%clk 0:01:06]} 49. Rc4+ {[%clk 0:00:50]}  Ka5 {[%clk 0:01:07]} 50. g5 {[%clk 0:00:50]}  Ka6 {[%clk 0:01:07]} 51. Ra4# {[%clk 0:00:51]} 1-0


[Site "https://www.chess.com"]

[Event "Titled Tuesday Blitz July 11 Early 2023"]
[White "Tsyhanchuk, Stanislav"]
[Black "Zubarev, Alexander"]
[WhiteFideId "13505130"]
[BlackFideId "14104385"]
[WhiteElo "2250"]
[BlackElo "2571"]
[Result "1-0"]
[Round "1"]
[TimeControl "180+2"]
[Date "2023.07.11"]
[WhiteClock "0:00:11"]
[BlackClock "0:00:00"]
[Board "173"]

1. e4 {[%clk 0:03:00]}  c5 {[%clk 0:02:59]} 2. Nf3 {[%clk 0:02:59]}  Nc6 {[%clk 0:02:59]} 3. d4 {[%clk 0:02:59]}  cxd4 {[%clk 0:03:00]} 4. Nxd4 {[%clk 0:02:59]}  Qb6 {[%clk 0:03:00]} 5. Nxc6 {[%clk 0:02:57]}  bxc6 {[%clk 0:02:59]} 6. c4 {[%clk 0:02:53]}  e5 {[%clk 0:02:47]} 7. Nc3 {[%clk 0:02:48]}  Bc5 {[%clk 0:02:47]} 8. Qc2 {[%clk 0:02:41]}  Nf6 {[%clk 0:01:38]} 9. Bd3 {[%clk 0:02:40]}  Bd4 {[%clk 0:01:35]} 10. O-O {[%clk 0:02:39]}  c5 {[%clk 0:01:25]} 11. Bg5 {[%clk 0:02:37]}  Bb7 {[%clk 0:01:24]} 12. Nb5 {[%clk 0:02:29]}  O-O {[%clk 0:01:14]} 13. a4 {[%clk 0:02:22]}  a5 {[%clk 0:01:09]} 14. Kh1 {[%clk 0:02:19]}  h6 {[%clk 0:01:07]} 15. Bh4 {[%clk 0:02:10]}  g5 {[%clk 0:00:54]} 16. Bg3 {[%clk 0:02:10]}  Rfe8 {[%clk 0:00:50]} 17. Qe2 {[%clk 0:02:07]}  Bc6 {[%clk 0:00:45]} 18. f3 {[%clk 0:01:57]}  Nh5 {[%clk 0:00:42]} 19. Nd6 {[%clk 0:01:13]}  Re6 {[%clk 0:00:36]} 20. Nf5 {[%clk 0:01:11]}  Qxb2 {[%clk 0:00:32]} 21. Qxb2 {[%clk 0:01:02]}  Bxb2 {[%clk 0:00:31]} 22. Rab1 {[%clk 0:01:03]}  Nxg3+ {[%clk 0:00:25]} 23. hxg3 {[%clk 0:00:59]}  Bc3 {[%clk 0:00:25]} 24. Bc2 {[%clk 0:00:56]}  Kh7 {[%clk 0:00:20]} 25. Kg1 {[%clk 0:00:54]}  Ree8 {[%clk 0:00:19]} 26. Kf2 {[%clk 0:00:54]}  Reb8 {[%clk 0:00:19]} 27. Rh1 {[%clk 0:00:52]}  Rxb1 {[%clk 0:00:16]} 28. Bxb1 {[%clk 0:00:47]}  Bd4+ {[%clk 0:00:15]} 29. Ke2 {[%clk 0:00:44]}  Rb8 {[%clk 0:00:14]} 30. Rxh6+ {[%clk 0:00:40]}  Kg8 {[%clk 0:00:14]} 31. Bc2 {[%clk 0:00:41]}  Rb2 {[%clk 0:00:12]} 32. Kd1 {[%clk 0:00:36]}  Ra2 {[%clk 0:00:11]} 33. Ne7+ {[%clk 0:00:35]}  Kf8 {[%clk 0:00:09]} 34. Nxc6 {[%clk 0:00:34]}  dxc6 {[%clk 0:00:09]} 35. Rxc6 {[%clk 0:00:35]}  Ra1+ {[%clk 0:00:10]} 36. Kd2 {[%clk 0:00:25]}  Rg1 {[%clk 0:00:10]} 37. Ra6 {[%clk 0:00:22]}  Rxg2+ {[%clk 0:00:09]} 38. Kd3 {[%clk 0:00:20]}  Rxg3 {[%clk 0:00:10]} 39. Bd1 {[%clk 0:00:20]}  Rg1 {[%clk 0:00:09]} 40. Be2 {[%clk 0:00:19]}  Rg3 {[%clk 0:00:07]} 41. Rxa5 {[%clk 0:00:19]}  g4 {[%clk 0:00:07]} 42. Ra8+ {[%clk 0:00:19]}  Kg7 {[%clk 0:00:07]} 43. a5 {[%clk 0:00:18]}  gxf3 {[%clk 0:00:08]} 44. Bf1 {[%clk 0:00:18]}  Rg1 {[%clk 0:00:07]} 45. Bh3 {[%clk 0:00:14]}  Ra1 {[%clk 0:00:03]} 46. a6 {[%clk 0:00:13]}  f2 {[%clk 0:00:02]} 47. Ke2 {[%clk 0:00:14]}  Re1+ {[%clk 0:00:02]} 48. Kd2 {[%clk 0:00:12]}  Ra1 {[%clk 0:00:02]} 49. a7 {[%clk 0:00:12]}  Kf6 {[%clk 0:00:02]} 50. Ke2 {[%clk 0:00:11]}  Re1+ {[%clk 0:00:00]} 51. Kf3 {[%clk 0:00:11]} 1-0


[Site "https://www.chess.com"]

[Event "Titled Tuesday Blitz July 11 Early 2023"]
[White "Chemin, Justo Reinaldo"]
[Black "Soham Kamotra"]
[WhiteFideId "2101580"]
[BlackFideId "46647490"]
[WhiteElo "2247"]
[BlackElo "2568"]
[Result "0-1"]
[Round "1"]
[TimeControl "180+2"]
[Date "2023.07.11"]
[WhiteClock "0:00:00"]
[BlackClock "0:00:13"]
[Board "175"]

1. e4 {[%clk 0:02:59]}  Nf6 {[%clk 0:02:47]} 2. e5 {[%clk 0:02:58]}  Nd5 {[%clk 0:02:46]} 3. d4 {[%clk 0:02:58]}  d6 {[%clk 0:02:36]} 4. Nf3 {[%clk 0:02:58]}  c6 {[%clk 0:02:33]} 5. c4 {[%clk 0:02:45]}  Nb6 {[%clk 0:02:30]} 6. Nc3 {[%clk 0:02:45]}  Bg4 {[%clk 0:02:23]} 7. exd6 {[%clk 0:02:41]}  exd6 {[%clk 0:02:22]} 8. Be3 {[%clk 0:02:33]}  Be7 {[%clk 0:02:19]} 9. b3 {[%clk 0:02:21]}  O-O {[%clk 0:02:18]} 10. Be2 {[%clk 0:02:22]}  Bf6 {[%clk 0:02:12]} 11. O-O {[%clk 0:02:20]}  Re8 {[%clk 0:02:11]} 12. Qd2 {[%clk 0:02:14]}  h6 {[%clk 0:02:07]} 13. h3 {[%clk 0:02:14]}  Bf5 {[%clk 0:02:07]} 14. a4 {[%clk 0:02:05]}  a5 {[%clk 0:02:02]} 15. Rac1 {[%clk 0:02:03]}  Na6 {[%clk 0:02:02]} 16. Rfe1 {[%clk 0:01:50]}  Nb4 {[%clk 0:01:57]} 17. Bf4 {[%clk 0:01:29]}  d5 {[%clk 0:01:35]} 18. c5 {[%clk 0:01:26]}  Nd7 {[%clk 0:01:33]} 19. Bf1 {[%clk 0:01:14]}  Nf8 {[%clk 0:01:20]} 20. Rxe8 {[%clk 0:01:12]}  Qxe8 {[%clk 0:01:21]} 21. Re1 {[%clk 0:01:11]}  Qd7 {[%clk 0:01:21]} 22. Be5 {[%clk 0:01:10]}  Be7 {[%clk 0:01:17]} 23. g4 {[%clk 0:00:57]}  Bh7 {[%clk 0:01:09]} 24. Qf4 {[%clk 0:00:51]}  Re8 {[%clk 0:01:02]} 25. Bd6 {[%clk 0:00:47]}  Bxd6 {[%clk 0:00:46]} 26. Qxd6 {[%clk 0:00:37]}  Rxe1 {[%clk 0:00:43]} 27. Nxe1 {[%clk 0:00:36]}  Qxd6 {[%clk 0:00:42]} 28. cxd6 {[%clk 0:00:36]}  f6 {[%clk 0:00:39]} 29. f4 {[%clk 0:00:35]}  Bc2 {[%clk 0:00:32]} 30. f5 {[%clk 0:00:22]}  Kf7 {[%clk 0:00:22]} 31. Ng2 {[%clk 0:00:22]}  Ke8 {[%clk 0:00:18]} 32. Nf4 {[%clk 0:00:22]}  Kd7 {[%clk 0:00:19]} 33. h4 {[%clk 0:00:11]}  Kxd6 {[%clk 0:00:19]} 34. g5 {[%clk 0:00:11]}  hxg5 {[%clk 0:00:18]} 35. hxg5 {[%clk 0:00:11]}  fxg5 {[%clk 0:00:19]} 36. Nh5 {[%clk 0:00:12]}  Bxf5 {[%clk 0:00:16]} 37. Nxg7 {[%clk 0:00:12]}  Bd7 {[%clk 0:00:16]} 38. Ne2 {[%clk 0:00:08]}  Ng6 {[%clk 0:00:15]} 39. Ng3 {[%clk 0:00:08]}  Nf4 {[%clk 0:00:13]} 40. N3f5+ {[%clk 0:00:08]}  Bxf5 {[%clk 0:00:12]} 41. Nxf5+ {[%clk 0:00:07]}  Ke6 {[%clk 0:00:13]} 42. Ng7+ {[%clk 0:00:04]}  Kf6 {[%clk 0:00:12]} 43. Ne8+ {[%clk 0:00:04]}  Ke7 {[%clk 0:00:12]} 44. Ng7 {[%clk 0:00:03]}  Nc2 {[%clk 0:00:13]} 45. Nf5+ {[%clk 0:00:02]}  Kf6 {[%clk 0:00:13]} 46. Ne3 {[%clk 0:00:03]}  Nxd4 {[%clk 0:00:13]} 47. Ng4+ {[%clk 0:00:03]}  Ke6 {[%clk 0:00:13]} 48. Ne3 {[%clk 0:00:02]}  Nxb3 {[%clk 0:00:13]} 49. Kf2 {[%clk 0:00:01]}  Nc5 {[%clk 0:00:13]} 50. Kf3 {[%clk 0:00:00]}  Nxa4 {[%clk 0:00:13]} 0-1


[Site "https://www.chess.com"]

[Event "Titled Tuesday Blitz July 11 Early 2023"]
[White "rikchessmx"]
[Black "Domingo Nunez, Alejandro"]
[BlackFideId "22245561"]
[WhiteElo "2229"]
[BlackElo "2563"]
[Result "0-1"]
[Round "1"]
[TimeControl "180+2"]
[Date "2023.07.11"]
[WhiteClock "0:00:00"]
[BlackClock "0:00:10"]
[Board "179"]

1. e4 {[%clk 0:02:57]}  g6 {[%clk 0:02:59]} 2. d4 {[%clk 0:02:57]}  Bg7 {[%clk 0:03:00]} 3. Nc3 {[%clk 0:02:57]}  c6 {[%clk 0:03:01]} 4. f3 {[%clk 0:02:57]}  d5 {[%clk 0:03:01]} 5. Be3 {[%clk 0:02:56]}  dxe4 {[%clk 0:03:00]} 6. fxe4 {[%clk 0:02:57]}  e5 {[%clk 0:02:59]} 7. d5 {[%clk 0:02:51]}  Nf6 {[%clk 0:02:58]} 8. h3 {[%clk 0:02:50]}  O-O {[%clk 0:02:57]} 9. Nf3 {[%clk 0:02:49]}  cxd5 {[%clk 0:02:22]} 10. exd5 {[%clk 0:02:36]}  e4 {[%clk 0:02:22]} 11. Nh2 {[%clk 0:02:18]}  Nh5 {[%clk 0:02:10]} 12. Qd2 {[%clk 0:02:17]}  Ng3 {[%clk 0:01:40]} 13. Rg1 {[%clk 0:02:07]}  Nf5 {[%clk 0:01:37]} 14. Bg5 {[%clk 0:02:04]}  Qd6 {[%clk 0:01:31]} 15. Ng4 {[%clk 0:01:46]}  Re8 {[%clk 0:01:31]} 16. O-O-O {[%clk 0:01:26]}  a6 {[%clk 0:01:27]} 17. Nh6+ {[%clk 0:01:16]}  Bxh6 {[%clk 0:00:46]} 18. Bxh6 {[%clk 0:01:15]}  e3 {[%clk 0:00:47]} 19. Bxe3 {[%clk 0:01:05]}  Rxe3 {[%clk 0:00:42]} 20. g4 {[%clk 0:01:03]}  Rg3 {[%clk 0:00:43]} 21. Rxg3 {[%clk 0:00:52]}  Nxg3 {[%clk 0:00:42]} 22. Bc4 {[%clk 0:00:52]}  Bd7 {[%clk 0:00:17]} 23. Qh2 {[%clk 0:00:49]}  Ne4 {[%clk 0:00:14]} 24. Qxd6 {[%clk 0:00:35]}  Nxd6 {[%clk 0:00:14]} 25. Bd3 {[%clk 0:00:35]}  b5 {[%clk 0:00:14]} 26. Re1 {[%clk 0:00:31]}  Kf8 {[%clk 0:00:14]} 27. Ne4 {[%clk 0:00:28]}  Nxe4 {[%clk 0:00:12]} 28. Bxe4 {[%clk 0:00:29]}  Ra7 {[%clk 0:00:12]} 29. b3 {[%clk 0:00:28]}  Rc7 {[%clk 0:00:10]} 30. Kd2 {[%clk 0:00:27]}  Be8 {[%clk 0:00:08]} 31. Kd3 {[%clk 0:00:27]}  Re7 {[%clk 0:00:08]} 32. c4 {[%clk 0:00:24]}  bxc4+ {[%clk 0:00:08]} 33. bxc4 {[%clk 0:00:24]}  Re5 {[%clk 0:00:08]} 34. Kd4 {[%clk 0:00:24]}  f6 {[%clk 0:00:08]} 35. Rf1 {[%clk 0:00:22]}  Ke7 {[%clk 0:00:08]} 36. c5 {[%clk 0:00:21]}  Bb5 {[%clk 0:00:08]} 37. d6+ {[%clk 0:00:20]}  Kd7 {[%clk 0:00:06]} 38. Ra1 {[%clk 0:00:20]}  Nc6+ {[%clk 0:00:07]} 39. Ke3 {[%clk 0:00:17]}  f5 {[%clk 0:00:04]} 40. a4 {[%clk 0:00:14]}  Rxe4+ {[%clk 0:00:04]} 41. Kf3 {[%clk 0:00:14]}  Bxa4 {[%clk 0:00:04]} 42. gxf5 {[%clk 0:00:14]}  gxf5 {[%clk 0:00:05]} 43. Rg1 {[%clk 0:00:13]}  Ne5+ {[%clk 0:00:05]} 44. Kf2 {[%clk 0:00:12]}  Rc4 {[%clk 0:00:05]} 45. Rg7+ {[%clk 0:00:11]}  Ke6 {[%clk 0:00:06]} 46. Rc7 {[%clk 0:00:09]}  Nd3+ {[%clk 0:00:06]} 47. Ke3 {[%clk 0:00:10]}  Nxc5 {[%clk 0:00:06]} 48. Re7+ {[%clk 0:00:09]}  Kd5 {[%clk 0:00:06]} 49. Rxh7 {[%clk 0:00:10]}  Re4+ {[%clk 0:00:07]} 50. Kf3 {[%clk 0:00:09]}  Kxd6 {[%clk 0:00:08]} 51. Rh6+ {[%clk 0:00:08]}  Ne6 {[%clk 0:00:08]} 52. h4 {[%clk 0:00:08]}  Ke5 {[%clk 0:00:09]} 53. Rh8 {[%clk 0:00:08]}  Rf4+ {[%clk 0:00:08]} 54. Ke3 {[%clk 0:00:07]}  Rg4 {[%clk 0:00:08]} 55. h5 {[%clk 0:00:07]}  Rg3+ {[%clk 0:00:09]} 56. Kf2 {[%clk 0:00:06]}  Kf4 {[%clk 0:00:09]} 57. h6 {[%clk 0:00:06]}  Rh3 {[%clk 0:00:10]} 58. h7 {[%clk 0:00:00]}  Ng5 {[%clk 0:00:10]} 0-1


[Site "https://www.chess.com"]

[Event "Titled Tuesday Blitz July 11 Early 2023"]
[White "Aggelis, Nikolaos"]
[Black "Ruge, Edison"]
[WhiteFideId "4213220"]
[BlackFideId "4401000"]
[WhiteElo "2563"]
[BlackElo "2227"]
[Result "1-0"]
[Round "1"]
[TimeControl "180+2"]
[Date "2023.07.11"]
[WhiteClock "0:01:28"]
[BlackClock "0:01:26"]
[Board "180"]

1. c4 {[%clk 0:02:57]}  e5 {[%clk 0:02:59]} 2. Nc3 {[%clk 0:02:55]}  Nc6 {[%clk 0:03:00]} 3. g3 {[%clk 0:02:55]}  f5 {[%clk 0:02:59]} 4. Bg2 {[%clk 0:02:55]}  Nf6 {[%clk 0:02:59]} 5. e3 {[%clk 0:02:56]}  Bb4 {[%clk 0:02:57]} 6. Nge2 {[%clk 0:02:56]}  O-O {[%clk 0:02:56]} 7. a3 {[%clk 0:02:57]}  Bxc3 {[%clk 0:02:54]} 8. Nxc3 {[%clk 0:02:58]}  d6 {[%clk 0:02:54]} 9. O-O {[%clk 0:02:56]}  Kh8 {[%clk 0:02:53]} 10. b4 {[%clk 0:02:55]}  Ne7 {[%clk 0:02:53]} 11. d3 {[%clk 0:02:54]}  Ng6 {[%clk 0:02:51]} 12. Ne2 {[%clk 0:02:43]}  c6 {[%clk 0:02:50]} 13. Bb2 {[%clk 0:02:43]}  Qe7 {[%clk 0:02:50]} 14. b5 {[%clk 0:02:41]}  Bd7 {[%clk 0:02:48]} 15. a4 {[%clk 0:02:41]}  Rab8 {[%clk 0:02:47]} 16. Qb3 {[%clk 0:02:37]}  c5 {[%clk 0:02:47]} 17. Rfe1 {[%clk 0:02:31]}  Ng4 {[%clk 0:02:35]} 18. h3 {[%clk 0:02:23]}  Nh6 {[%clk 0:02:32]} 19. f4 {[%clk 0:02:23]}  Nf7 {[%clk 0:02:23]} 20. Nc3 {[%clk 0:02:19]}  Be6 {[%clk 0:02:22]} 21. Nd5 {[%clk 0:02:19]}  Bxd5 {[%clk 0:02:16]} 22. Bxd5 {[%clk 0:02:20]}  h5 {[%clk 0:02:13]} 23. Qd1 {[%clk 0:02:10]}  h4 {[%clk 0:02:10]} 24. Qh5+ {[%clk 0:02:06]}  Nh6 {[%clk 0:02:10]} 25. Qxg6 {[%clk 0:02:04]}  hxg3 {[%clk 0:02:10]} 26. Qxg3 {[%clk 0:02:01]}  Rbe8 {[%clk 0:02:03]} 27. Kh2 {[%clk 0:01:52]}  Qf6 {[%clk 0:01:57]} 28. Rg1 {[%clk 0:01:48]}  Kh7 {[%clk 0:01:42]} 29. Rg2 {[%clk 0:01:38]}  Re7 {[%clk 0:01:41]} 30. Rag1 {[%clk 0:01:37]}  exf4 {[%clk 0:01:26]} 31. exf4 {[%clk 0:01:28]} 1-0


[Site "https://www.chess.com"]

[Event "Titled Tuesday Blitz July 11 Early 2023"]
[White "Orlov, Georgi"]
[Black "Kiselev, Pavel"]
[WhiteFideId "2011271"]
[BlackFideId "4191102"]
[WhiteElo "2561"]
[BlackElo "2219"]
[Result "1/2-1/2"]
[Round "1"]
[TimeControl "180+2"]
[Date "2023.07.11"]
[WhiteClock "0:00:31"]
[BlackClock "0:00:26"]
[Board "182"]

1. c4 {[%clk 0:02:57]}  Nf6 {[%clk 0:03:00]} 2. Nc3 {[%clk 0:02:56]}  e6 {[%clk 0:02:58]} 3. d3 {[%clk 0:02:56]}  d5 {[%clk 0:02:59]} 4. Qb3 {[%clk 0:02:54]}  c6 {[%clk 0:02:57]} 5. Nf3 {[%clk 0:02:48]}  Be7 {[%clk 0:02:56]} 6. g3 {[%clk 0:02:48]}  O-O {[%clk 0:02:55]} 7. Bg2 {[%clk 0:02:48]}  Nbd7 {[%clk 0:02:55]} 8. O-O {[%clk 0:02:48]}  b6 {[%clk 0:02:53]} 9. Bf4 {[%clk 0:02:47]}  Bb7 {[%clk 0:02:52]} 10. Rac1 {[%clk 0:02:47]}  Nc5 {[%clk 0:02:52]} 11. Qc2 {[%clk 0:02:46]}  Bd6 {[%clk 0:02:45]} 12. Bxd6 {[%clk 0:02:43]}  Qxd6 {[%clk 0:02:46]} 13. b4 {[%clk 0:02:43]}  Ncd7 {[%clk 0:02:44]} 14. a3 {[%clk 0:02:42]}  Rac8 {[%clk 0:02:40]} 15. e4 {[%clk 0:02:31]}  d4 {[%clk 0:02:33]} 16. Nb1 {[%clk 0:02:29]}  c5 {[%clk 0:02:32]} 17. b5 {[%clk 0:02:27]}  e5 {[%clk 0:02:29]} 18. Nbd2 {[%clk 0:02:26]}  Ne8 {[%clk 0:02:27]} 19. Bh3 {[%clk 0:02:25]}  Rd8 {[%clk 0:02:23]} 20. Rfe1 {[%clk 0:02:24]}  g6 {[%clk 0:02:22]} 21. a4 {[%clk 0:02:22]}  Ng7 {[%clk 0:02:22]} 22. a5 {[%clk 0:02:19]}  f5 {[%clk 0:02:22]} 23. a6 {[%clk 0:02:18]}  Ba8 {[%clk 0:02:21]} 24. Re2 {[%clk 0:02:12]}  fxe4 {[%clk 0:02:14]} 25. Rxe4 {[%clk 0:02:09]}  Bxe4 {[%clk 0:02:11]} 26. Nxe4 {[%clk 0:02:08]}  Qc7 {[%clk 0:02:12]} 27. Kg2 {[%clk 0:02:04]}  Nf6 {[%clk 0:02:11]} 28. Nxf6+ {[%clk 0:02:01]}  Rxf6 {[%clk 0:02:12]} 29. Ng5 {[%clk 0:01:59]}  Rdf8 {[%clk 0:01:59]} 30. Ne4 {[%clk 0:01:58]}  R6f7 {[%clk 0:01:58]} 31. Rg1 {[%clk 0:01:56]}  Nf5 {[%clk 0:01:58]} 32. Re1 {[%clk 0:01:46]}  Qe7 {[%clk 0:01:36]} 33. Qd2 {[%clk 0:01:42]}  Nd6 {[%clk 0:01:35]} 34. Nxd6 {[%clk 0:01:28]}  Qxd6 {[%clk 0:01:36]} 35. Re2 {[%clk 0:01:21]}  Qf6 {[%clk 0:01:25]} 36. Kg1 {[%clk 0:01:13]}  Re7 {[%clk 0:01:26]} 37. Bg2 {[%clk 0:01:12]}  Kg7 {[%clk 0:01:16]} 38. Qe1 {[%clk 0:01:10]}  Rfe8 {[%clk 0:01:01]} 39. Bc6 {[%clk 0:01:09]}  Rf8 {[%clk 0:01:00]} 40. f4 {[%clk 0:01:01]}  e4 {[%clk 0:00:35]} 41. Rxe4 {[%clk 0:00:56]}  Rxe4 {[%clk 0:00:34]} 42. Qxe4 {[%clk 0:00:54]}  Rf7 {[%clk 0:00:32]} 43. Qf3 {[%clk 0:00:50]}  Re7 {[%clk 0:00:32]} 44. Be4 {[%clk 0:00:49]}  Qe6 {[%clk 0:00:32]} 45. Kg2 {[%clk 0:00:46]}  Qf6 {[%clk 0:00:32]} 46. h4 {[%clk 0:00:43]}  h5 {[%clk 0:00:32]} 47. Kh2 {[%clk 0:00:41]}  Kh6 {[%clk 0:00:31]} 48. Kg2 {[%clk 0:00:36]}  Kg7 {[%clk 0:00:30]} 49. Kh3 {[%clk 0:00:35]}  Qe6+ {[%clk 0:00:26]} 50. Kg2 {[%clk 0:00:31]}  Qf6 {[%clk 0:00:26]} 1/2-1/2


[Site "https://www.chess.com"]